[Event "*** Titled Tuesday Blitz"]
[Site "Chess.com"]
[Date "2019.11.05"]
[Round "3"]
[White "przemekpiotrowski"]
[Black "Irishchessman16"]
[Result "1-0"]
[WhiteElo "2394"]
[BlackElo "2173"]
[TimeControl "180+2"]
[EndTime "13:38:27 PST"]
[Termination "przemekpiotrowski won by checkmate"]

1. d4 {[%clk 0:03:01.9]} 1... Nf6 {[%clk 0:02:59.8]} 2. Nf3 {[%clk 0:03:03.1]}
2... d5 {[%clk 0:02:58.8]} 3. g3 {[%clk 0:03:04.3]} 3... e6 {[%clk 0:02:57.4]}
4. Bg2 {[%clk 0:03:05.5]} 4... b5 {[%clk 0:02:58.5]} 5. O-O {[%clk 0:03:07.4]}
5... Nbd7 {[%clk 0:02:57.9]} 6. a4 {[%clk 0:03:09]} 6... b4 {[%clk 0:02:56.4]}
7. c3 {[%clk 0:03:10.4]} 7... Ba6 {[%clk 0:02:56.6]} 8. Bf4 {[%clk 0:03:08.4]}
8... c5 {[%clk 0:02:53.1]} 9. cxb4 {[%clk 0:03:08.5]} 9... cxb4 {[%clk
0:02:53.9]} 10. Nbd2 {[%clk 0:03:10.4]} 10... Be7 {[%clk 0:02:50.8]} 11. Nb3
{[%clk 0:03:11.4]} 11... O-O {[%clk 0:02:47.2]} 12. Rc1 {[%clk 0:03:05.1]} 12...
Rc8 {[%clk 0:02:43.5]} 13. Rxc8 {[%clk 0:02:51.2]} 13... Qxc8 {[%clk 0:02:43.8]}
14. Ne1 {[%clk 0:02:49.4]} 14... Nb6 {[%clk 0:02:40.9]} 15. a5 {[%clk
0:02:36.1]} 15... Nc4 {[%clk 0:02:41.5]} 16. Nd3 {[%clk 0:02:37.7]} 16... Bb5
{[%clk 0:02:42.3]} 17. Qa1 {[%clk 0:02:24.7]} 17... Nd7 {[%clk 0:02:35.5]} 18.
Rc1 {[%clk 0:02:24.6]} 18... Qc6 {[%clk 0:02:31]} 19. h4 {[%clk 0:02:24]} 19...
Rc8 {[%clk 0:02:28.9]} 20. Re1 {[%clk 0:01:46.1]} 20... Nf6 {[%clk 0:02:07.8]}
21. Nbc5 {[%clk 0:01:41.9]} 21... Bxc5 {[%clk 0:02:04.1]} 22. Nxc5 {[%clk
0:01:43.8]} 22... Nh5 {[%clk 0:01:55.9]} 23. b3 {[%clk 0:01:34.4]} 23... Na3
{[%clk 0:01:50.6]} 24. Rc1 {[%clk 0:01:35.3]} 24... Nxf4 {[%clk 0:01:49.3]} 25.
gxf4 {[%clk 0:01:36.4]} 25... Bxe2 {[%clk 0:01:27.4]} 26. Nd3 {[%clk 0:01:26.1]}
26... Bxd3 {[%clk 0:01:26.2]} 27. Rxc6 {[%clk 0:01:26.4]} 27... Rxc6 {[%clk
0:01:28.1]} 28. Bf1 {[%clk 0:01:27.5]} 28... Bc2 {[%clk 0:01:21.4]} 29. Qe1
{[%clk 0:01:25.4]} 29... Rc3 {[%clk 0:01:20.3]} 30. f5 {[%clk 0:01:24.7]} 30...
Bxf5 {[%clk 0:01:19.6]} 31. Qe5 {[%clk 0:01:22.9]} 31... Rc8 {[%clk 0:01:07.2]}
32. Qd6 {[%clk 0:01:17.5]} 32... Nc2 {[%clk 0:01:06.3]} 33. Qd7 {[%clk
0:01:15.2]} 33... Rf8 {[%clk 0:01:02.7]} 34. Qxa7 {[%clk 0:01:16.3]} 34... h6
{[%clk 0:00:59.2]} 35. Qc5 {[%clk 0:01:16.8]} 35... e5 {[%clk 0:00:56.5]} 36.
dxe5 {[%clk 0:00:30.1]} 36... d4 {[%clk 0:00:54.1]} 37. a6 {[%clk 0:00:31.4]}
37... d3 {[%clk 0:00:51.2]} 38. a7 {[%clk 0:00:32.6]} 38... d2 {[%clk 0:00:46]}
39. Qxf8+ {[%clk 0:00:29.9]} 39... Kxf8 {[%clk 0:00:45]} 40. a8=Q+ {[%clk
0:00:31.8]} 40... Ke7 {[%clk 0:00:44.9]} 41. Qb7+ {[%clk 0:00:24.4]} 41... Ke6
{[%clk 0:00:44.2]} 42. Bc4+ {[%clk 0:00:25.1]} 42... Kxe5 {[%clk 0:00:44.8]} 43.
Qd5+ {[%clk 0:00:26]} 43... Kf6 {[%clk 0:00:45.4]} 44. Qxf7+ {[%clk 0:00:26.8]}
44... Ke5 {[%clk 0:00:45.7]} 45. Qd5+ {[%clk 0:00:27.9]} 45... Kf4 {[%clk
0:00:46.2]} 46. Qxd2+ {[%clk 0:00:28.6]} 46... Kg4 {[%clk 0:00:46.4]} 47. Be2+
{[%clk 0:00:24.2]} 47... Kxh4 {[%clk 0:00:47.4]} 48. Qf4+ {[%clk 0:00:25.2]}
48... Kh3 {[%clk 0:00:46.5]} 49. Qg3# {[%clk 0:00:26.3]} 1-0

[Event "*** Titled Tuesday Blitz"]
[Site "Chess.com"]
[Date "2019.11.05"]
[Round "3"]
[White "Borsuk_Konstantin"]
[Black "SHIVACalypso"]
[Result "0-1"]
[WhiteElo "2508"]
[BlackElo "2283"]
[TimeControl "180+2"]
[EndTime "13:38:33 PST"]
[Termination "SHIVACalypso won on time"]

1. d4 {[%clk 0:03:01.9]} 1... Nf6 {[%clk 0:02:59.8]} 2. c4 {[%clk 0:03:02.8]}
2... e6 {[%clk 0:02:59.5]} 3. Nc3 {[%clk 0:03:03.5]} 3... Bb4 {[%clk 0:02:59.5]}
4. Qc2 {[%clk 0:03:04.3]} 4... O-O {[%clk 0:02:59.1]} 5. a3 {[%clk 0:03:05.1]}
5... Bxc3+ {[%clk 0:02:58.2]} 6. Qxc3 {[%clk 0:03:07]} 6... d5 {[%clk
0:02:59.2]} 7. Bg5 {[%clk 0:03:00.9]} 7... dxc4 {[%clk 0:02:52.1]} 8. e3 {[%clk
0:02:38.6]} 8... b5 {[%clk 0:02:37.8]} 9. a4 {[%clk 0:02:37.3]} 9... c6 {[%clk
0:02:38.9]} 10. Nf3 {[%clk 0:02:21]} 10... Bb7 {[%clk 0:02:33.1]} 11. Ne5 {[%clk
0:01:35.4]} 11... Nbd7 {[%clk 0:02:20.7]} 12. Nxd7 {[%clk 0:01:31.5]} 12... Qxd7
{[%clk 0:02:22.6]} 13. Bxf6 {[%clk 0:01:28.6]} 13... gxf6 {[%clk 0:02:24.5]} 14.
Be2 {[%clk 0:01:23.3]} 14... a6 {[%clk 0:02:04.3]} 15. h4 {[%clk 0:01:23.5]}
15... Qd6 {[%clk 0:01:49.5]} 16. Rh3 {[%clk 0:01:22]} 16... e5 {[%clk 0:01:49]}
17. Rd1 {[%clk 0:01:03.8]} 17... e4 {[%clk 0:01:36.1]} 18. h5 {[%clk 0:00:57.4]}
18... h6 {[%clk 0:01:29.4]} 19. Rh4 {[%clk 0:00:55.5]} 19... f5 {[%clk
0:01:24.8]} 20. Rf4 {[%clk 0:00:51.6]} 20... Bc8 {[%clk 0:01:19.3]} 21. g4
{[%clk 0:00:36.8]} 21... fxg4 {[%clk 0:01:01]} 22. Bxg4 {[%clk 0:00:38.7]} 22...
f5 {[%clk 0:01:01.8]} 23. Be2 {[%clk 0:00:30]} 23... Qd5 {[%clk 0:00:50]} 24. f3
{[%clk 0:00:29.9]} 24... Bd7 {[%clk 0:00:44.2]} 25. Kf2 {[%clk 0:00:29.9]} 25...
Kh8 {[%clk 0:00:36.8]} 26. Ra1 {[%clk 0:00:14.7]} 26... Be6 {[%clk 0:00:20.1]}
27. Qb4 {[%clk 0:00:15.3]} 27... Rg8 {[%clk 0:00:18.9]} 28. Qe7 {[%clk
0:00:15.6]} 28... Qd7 {[%clk 0:00:17.1]} 29. Qf6+ {[%clk 0:00:16.5]} 29... Kh7
{[%clk 0:00:17.9]} 30. fxe4 {[%clk 0:00:17.6]} 30... Raf8 {[%clk 0:00:18.3]} 31.
Qe5 {[%clk 0:00:17.6]} 31... fxe4 {[%clk 0:00:19.2]} 32. Qxe4+ {[%clk
0:00:18.6]} 32... Bf5 {[%clk 0:00:19.6]} 33. Qe5 {[%clk 0:00:19.8]} 33... Bc2
{[%clk 0:00:18.8]} 34. Rf1 {[%clk 0:00:15.8]} 34... Rxf4+ {[%clk 0:00:15.9]} 35.
exf4 {[%clk 0:00:16.9]} 35... Qh3 {[%clk 0:00:15]} 36. Ke1 {[%clk 0:00:13.1]}
36... Bd3 {[%clk 0:00:13.3]} 37. Qe6 {[%clk 0:00:05.3]} 37... Qxe6 {[%clk
0:00:10.8]} 0-1

[Event "*** Titled Tuesday Blitz"]
[Site "Chess.com"]
[Date "2019.11.05"]
[Round "3"]
[White "moro182"]
[Black "Alexander_Zubov"]
[Result "0-1"]
[WhiteElo "2718"]
[BlackElo "2954"]
[TimeControl "180+2"]
[EndTime "13:38:40 PST"]
[Termination "Alexander_Zubov won by resignation"]

1. d4 {[%clk 0:03:01.9]} 1... Nf6 {[%clk 0:03:00]} 2. c4 {[%clk 0:03:03.4]} 2...
g6 {[%clk 0:03:00.7]} 3. g3 {[%clk 0:03:04.6]} 3... Bg7 {[%clk 0:02:59.5]} 4.
Bg2 {[%clk 0:03:05.8]} 4... d5 {[%clk 0:02:59.2]} 5. cxd5 {[%clk 0:03:05.7]}
5... Nxd5 {[%clk 0:03:01.1]} 6. Nf3 {[%clk 0:03:03.7]} 6... O-O {[%clk
0:02:53.7]} 7. O-O {[%clk 0:03:04.4]} 7... Nc6 {[%clk 0:02:54.3]} 8. Nc3 {[%clk
0:03:00.4]} 8... e5 {[%clk 0:02:51.9]} 9. Bg5 {[%clk 0:02:31.6]} 9... f6 {[%clk
0:02:51.8]} 10. Bc1 {[%clk 0:02:23.1]} 10... Nxc3 {[%clk 0:02:47.5]} 11. bxc3
{[%clk 0:02:24]} 11... e4 {[%clk 0:02:47.8]} 12. Nd2 {[%clk 0:02:25]} 12... f5
{[%clk 0:02:48.2]} 13. Rb1 {[%clk 0:02:23.6]} 13... Kh8 {[%clk 0:02:45.6]} 14.
Qb3 {[%clk 0:02:20.5]} 14... b6 {[%clk 0:02:42.4]} 15. e3 {[%clk 0:02:19]} 15...
Na5 {[%clk 0:02:35]} 16. Qc2 {[%clk 0:02:18.3]} 16... Ba6 {[%clk 0:02:21.3]} 17.
c4 {[%clk 0:02:18.9]} 17... Qe7 {[%clk 0:02:10.3]} 18. Bb2 {[%clk 0:02:15.3]}
18... Rac8 {[%clk 0:01:58.3]} 19. Rfc1 {[%clk 0:02:12.6]} 19... c5 {[%clk
0:01:55.8]} 20. d5 {[%clk 0:02:11.8]} 20... g5 {[%clk 0:01:49]} 21. g4 {[%clk
0:02:05.2]} 21... fxg4 {[%clk 0:01:47.9]} 22. Qxe4 {[%clk 0:01:51.8]} 22... Qxe4
{[%clk 0:01:44.5]} 23. Bxe4 {[%clk 0:01:53.7]} 23... Rce8 {[%clk 0:01:40.1]} 24.
Bd3 {[%clk 0:01:50]} 24... Bxb2 {[%clk 0:01:30.1]} 25. Rxb2 {[%clk 0:01:51.9]}
25... Kg7 {[%clk 0:01:30.8]} 26. Kg2 {[%clk 0:01:51.4]} 26... h5 {[%clk
0:01:31.2]} 27. Rbc2 {[%clk 0:01:43.2]} 27... Kh6 {[%clk 0:01:23.4]} 28. Nf1
{[%clk 0:01:42.8]} 28... h4 {[%clk 0:01:19.3]} 29. Be2 {[%clk 0:01:37.8]} 29...
Bc8 {[%clk 0:01:19.9]} 30. Bd3 {[%clk 0:01:33.4]} 30... Rf6 {[%clk 0:01:15.7]}
31. e4 {[%clk 0:01:32]} 31... Nb7 {[%clk 0:01:14]} 32. Re1 {[%clk 0:01:26.3]}
32... Re5 {[%clk 0:01:14.8]} 33. a4 {[%clk 0:01:11.2]} 33... Bd7 {[%clk
0:01:13.8]} 34. Ra2 {[%clk 0:01:11.1]} 34... Rf3 {[%clk 0:01:10.9]} 35. Ne3
{[%clk 0:01:09.5]} 35... Rf4 {[%clk 0:01:04]} 36. Rb1 {[%clk 0:00:59.6]} 36...
Na5 {[%clk 0:01:01]} 37. Nd1 {[%clk 0:00:32.8]} 37... Kg7 {[%clk 0:00:55.7]} 38.
Ne3 {[%clk 0:00:29.5]} 38... Kf8 {[%clk 0:00:53.9]} 39. Rg1 {[%clk 0:00:22.9]}
39... Ke7 {[%clk 0:00:53.4]} 40. Kf1 {[%clk 0:00:24]} 40... Kd6 {[%clk
0:00:51.3]} 41. Ke1 {[%clk 0:00:25.2]} 41... Kc7 {[%clk 0:00:49.3]} 42. Kd1
{[%clk 0:00:24.2]} 42... Nb7 {[%clk 0:00:49.7]} 43. Ke2 {[%clk 0:00:21.5]} 43...
a5 {[%clk 0:00:49.6]} 44. Rb1 {[%clk 0:00:21.7]} 44... Rf6 {[%clk 0:00:46.2]}
45. Bc2 {[%clk 0:00:21.9]} 45... Nd6 {[%clk 0:00:45.7]} 46. Rab2 {[%clk
0:00:22.9]} 46... Nxe4 {[%clk 0:00:46.7]} 47. Bxe4 {[%clk 0:00:23.2]} 47... Rxe4
{[%clk 0:00:48.6]} 48. d6+ {[%clk 0:00:23.8]} 48... Rxd6 {[%clk 0:00:49.1]} 49.
Kf1 {[%clk 0:00:23.1]} 49... Be6 {[%clk 0:00:50.2]} 50. Kg2 {[%clk 0:00:18.7]}
50... Bxc4 {[%clk 0:00:50.7]} 0-1

[Event "*** Titled Tuesday Blitz"]
[Site "Chess.com"]
[Date "2019.11.05"]
[Round "3"]
[White "FedaMaster"]
[Black "hypert"]
[Result "0-1"]
[WhiteElo "2635"]
[BlackElo "2456"]
[TimeControl "180+2"]
[EndTime "13:38:41 PST"]
[Termination "hypert won by resignation"]

1. e4 {[%clk 0:03:01.9]} 1... c5 {[%clk 0:03:00.7]} 2. Nf3 {[%clk 0:03:02.3]}
2... Nc6 {[%clk 0:03:01.9]} 3. d4 {[%clk 0:03:03.1]} 3... cxd4 {[%clk
0:03:03.8]} 4. Nxd4 {[%clk 0:03:04.1]} 4... Nf6 {[%clk 0:03:05.4]} 5. Nc3 {[%clk
0:03:04.9]} 5... d6 {[%clk 0:03:07]} 6. Bg5 {[%clk 0:02:59.2]} 6... e6 {[%clk
0:03:08.4]} 7. Qd3 {[%clk 0:02:59.3]} 7... h6 {[%clk 0:02:55.6]} 8. Bh4 {[%clk
0:02:50.7]} 8... a6 {[%clk 0:02:41.8]} 9. O-O-O {[%clk 0:02:47.9]} 9... Ne5
{[%clk 0:02:42.3]} 10. Qh3 {[%clk 0:01:55.8]} 10... Bd7 {[%clk 0:02:04.5]} 11.
f4 {[%clk 0:01:45.8]} 11... Ng6 {[%clk 0:02:05.6]} 12. f5 {[%clk 0:01:14.9]}
12... e5 {[%clk 0:02:01]} 13. Ne6 {[%clk 0:00:43.1]} 13... fxe6 {[%clk
0:01:56.2]} 14. fxg6 {[%clk 0:00:44.5]} 14... Be7 {[%clk 0:01:52.4]} 15. Bc4
{[%clk 0:00:45.5]} 15... d5 {[%clk 0:01:51.6]} 16. Bb3 {[%clk 0:00:31.2]} 16...
b5 {[%clk 0:01:52.4]} 17. Bxf6 {[%clk 0:00:25.2]} 17... Bxf6 {[%clk 0:01:52]}
18. exd5 {[%clk 0:00:26.5]} 18... exd5 {[%clk 0:01:52.6]} 19. Qd3 {[%clk
0:00:20.6]} 19... d4 {[%clk 0:01:50.5]} 20. Nd5 {[%clk 0:00:15.2]} 20... Bg5+
{[%clk 0:01:46.8]} 21. Kb1 {[%clk 0:00:16.1]} 21... Be6 {[%clk 0:01:44.4]} 22.
Qe4 {[%clk 0:00:12]} 22... O-O {[%clk 0:01:04.5]} 23. Qxe5 {[%clk 0:00:13.2]}
23... Re8 {[%clk 0:01:05.8]} 24. Qxd4 {[%clk 0:00:14.4]} 24... Rb8 {[%clk
0:00:52.5]} 25. Nb4 {[%clk 0:00:12.8]} 25... Qxd4 {[%clk 0:00:39.6]} 26. Rxd4
{[%clk 0:00:13.6]} 26... Bxb3 {[%clk 0:00:40.6]} 27. axb3 {[%clk 0:00:15.5]}
27... a5 {[%clk 0:00:41.4]} 28. Nc6 {[%clk 0:00:16.9]} 28... Rbc8 {[%clk
0:00:42.4]} 29. Nxa5 {[%clk 0:00:18]} 29... Re2 {[%clk 0:00:42.6]} 30. c4 {[%clk
0:00:18.2]} 30... Bf6 {[%clk 0:00:41.5]} 31. Rd3 {[%clk 0:00:18.4]} 31... Rxb2+
{[%clk 0:00:42]} 32. Kc1 {[%clk 0:00:19.5]} 32... Ra2 {[%clk 0:00:42.5]} 33.
Rhd1 {[%clk 0:00:14.6]} 33... Rxa5 {[%clk 0:00:38.7]} 34. Kb1 {[%clk 0:00:09.9]}
34... bxc4 {[%clk 0:00:30.4]} 35. bxc4 {[%clk 0:00:09.2]} 35... Rb8+ {[%clk
0:00:20.2]} 36. Kc1 {[%clk 0:00:07.5]} 36... Ra1+ {[%clk 0:00:20.1]} 37. Kd2
{[%clk 0:00:08.8]} 37... Rb2+ {[%clk 0:00:18]} 38. Ke3 {[%clk 0:00:09.7]} 38...
Rxd1 {[%clk 0:00:18.8]} 39. Rxd1 {[%clk 0:00:11.5]} 39... Rxg2 {[%clk 0:00:20]}
40. Rd7 {[%clk 0:00:11.5]} 40... Rxg6 {[%clk 0:00:20.8]} 41. c5 {[%clk 0:00:13]}
41... Rg2 {[%clk 0:00:18.8]} 42. Kd3 {[%clk 0:00:13.1]} 42... Rxh2 {[%clk
0:00:18.8]} 43. c6 {[%clk 0:00:14.7]} 43... Rh3+ {[%clk 0:00:20.3]} 44. Kd2
{[%clk 0:00:15]} 44... Rc3 {[%clk 0:00:22.2]} 45. c7 {[%clk 0:00:16.5]} 45...
Kh7 {[%clk 0:00:23]} 46. Rf7 {[%clk 0:00:17]} 46... Rc6 {[%clk 0:00:24.2]} 47.
Kd3 {[%clk 0:00:18.3]} 47... Be5 {[%clk 0:00:25.5]} 48. Ke4 {[%clk 0:00:20.2]}
48... Rxc7 {[%clk 0:00:26.6]} 49. Kd5 {[%clk 0:00:21.9]} 49... Rxf7 {[%clk
0:00:27.3]} 0-1

[Event "*** Titled Tuesday Blitz"]
[Site "Chess.com"]
[Date "2019.11.05"]
[Round "3"]
[White "SONOFHOLYGOD"]
[Black "DishonorOnYourCow"]
[Result "0-1"]
[WhiteElo "2493"]
[BlackElo "2237"]
[TimeControl "180+2"]
[EndTime "13:38:41 PST"]
[Termination "DishonorOnYourCow won by resignation"]

1. d4 {[%clk 0:03:01.9]} 1... Nf6 {[%clk 0:02:54.7]} 2. c4 {[%clk 0:03:02.1]}
2... g6 {[%clk 0:02:54.2]} 3. Nc3 {[%clk 0:03:02.6]} 3... d5 {[%clk 0:02:53.6]}
4. Nf3 {[%clk 0:03:01]} 4... Bg7 {[%clk 0:02:52.7]} 5. Qb3 {[%clk 0:03:01.5]}
5... dxc4 {[%clk 0:02:46.8]} 6. Qxc4 {[%clk 0:03:03.4]} 6... O-O {[%clk
0:02:48.1]} 7. e4 {[%clk 0:03:03.5]} 7... Na6 {[%clk 0:02:42.6]} 8. Bg5 {[%clk
0:03:02.8]} 8... c5 {[%clk 0:02:30.8]} 9. d5 {[%clk 0:02:54.8]} 9... Qa5 {[%clk
0:01:26.1]} 10. Be2 {[%clk 0:02:48.4]} 10... Nxe4 {[%clk 0:01:06.3]} 11. Qxe4
{[%clk 0:02:44.3]} 11... Bxc3+ {[%clk 0:01:07.1]} 12. Bd2 {[%clk 0:02:41.9]}
12... Bxd2+ {[%clk 0:01:06.4]} 13. Nxd2 {[%clk 0:02:42.3]} 13... Bf5 {[%clk
0:01:07.1]} 14. Qc4 {[%clk 0:02:41.3]} 14... Nb4 {[%clk 0:00:55]} 15. O-O {[%clk
0:02:40.8]} 15... Rad8 {[%clk 0:00:50.6]} 16. Nb3 {[%clk 0:02:34.6]} 16... Qb6
{[%clk 0:00:49.5]} 17. Nxc5 {[%clk 0:02:30.6]} 17... Nxd5 {[%clk 0:00:43.7]} 18.
Bf3 {[%clk 0:02:18.9]} 18... Rc8 {[%clk 0:00:31.5]} 19. Qxd5 {[%clk 0:02:16.3]}
19... Rxc5 {[%clk 0:00:31.1]} 20. Qd4 {[%clk 0:02:14.2]} 20... Rc2 {[%clk
0:00:30.9]} 21. Qxb6 {[%clk 0:02:13.3]} 21... axb6 {[%clk 0:00:32.8]} 22. b3
{[%clk 0:02:12]} 22... Ra8 {[%clk 0:00:30.1]} 23. a4 {[%clk 0:02:11]} 23... Be6
{[%clk 0:00:28.1]} 24. Rfb1 {[%clk 0:02:02.6]} 24... Rc3 {[%clk 0:00:25.4]} 25.
b4 {[%clk 0:02:03.2]} 25... Bd7 {[%clk 0:00:22.4]} 26. Rd1 {[%clk 0:01:58.9]}
26... Rxa4 {[%clk 0:00:18.3]} 27. Rxa4 {[%clk 0:01:52.4]} 27... Bxa4 {[%clk
0:00:20.2]} 28. Rd8+ {[%clk 0:01:51.5]} 28... Kg7 {[%clk 0:00:21.2]} 29. h4
{[%clk 0:01:52.4]} 29... Bc6 {[%clk 0:00:22.1]} 30. Bg4 {[%clk 0:01:51.3]} 30...
h5 {[%clk 0:00:22.5]} 31. Be2 {[%clk 0:01:49]} 31... Rb3 {[%clk 0:00:21]} 32. b5
{[%clk 0:01:46.1]} 32... Bxb5 {[%clk 0:00:21.3]} 33. Bxb5 {[%clk 0:01:45]} 33...
Rxb5 {[%clk 0:00:23.2]} 34. Rd7 {[%clk 0:01:46.5]} 34... Rb1+ {[%clk 0:00:23.7]}
35. Kh2 {[%clk 0:01:47.1]} 35... Kf6 {[%clk 0:00:24]} 36. Rxb7 {[%clk
0:01:47.9]} 36... b5 {[%clk 0:00:24.3]} 37. f3 {[%clk 0:01:48.7]} 37... b4
{[%clk 0:00:25.3]} 38. Kg3 {[%clk 0:01:49.7]} 38... b3 {[%clk 0:00:26.4]} 39.
Kf4 {[%clk 0:01:50.1]} 39... Rb2 {[%clk 0:00:24.4]} 40. Rb6+ {[%clk 0:01:50.8]}
40... e6 {[%clk 0:00:25.3]} 41. g4 {[%clk 0:01:51.6]} 41... hxg4 {[%clk
0:00:24.8]} 42. Kxg4 {[%clk 0:01:52.7]} 42... Rg2+ {[%clk 0:00:25.2]} 43. Kf4
{[%clk 0:01:53.5]} 43... b2 {[%clk 0:00:26.1]} 44. Ke3 {[%clk 0:01:52.3]} 44...
Kg7 {[%clk 0:00:27]} 45. Kf4 {[%clk 0:01:53]} 45... Kh6 {[%clk 0:00:28.1]} 46.
Rb5 {[%clk 0:01:53]} 46... f6 {[%clk 0:00:28.5]} 47. Ke3 {[%clk 0:01:52.8]}
47... e5 {[%clk 0:00:29.3]} 48. Rb6 {[%clk 0:01:52.7]} 48... Kh5 {[%clk
0:00:30.2]} 49. f4 {[%clk 0:01:52.7]} 49... exf4+ {[%clk 0:00:29.1]} 50. Kxf4
{[%clk 0:01:54.6]} 50... Kxh4 {[%clk 0:00:30.2]} 51. Rb8 {[%clk 0:01:55.1]}
51... g5+ {[%clk 0:00:30.9]} 52. Kf3 {[%clk 0:01:56.3]} 52... Rg3+ {[%clk
0:00:31.9]} 53. Kf2 {[%clk 0:01:57.6]} 53... Rh3 {[%clk 0:00:25.6]} 54. Kg2
{[%clk 0:01:55.2]} 54... Rg3+ {[%clk 0:00:24.6]} 55. Kf2 {[%clk 0:01:56.1]}
55... Rc3 {[%clk 0:00:23.9]} 56. Rxb2 {[%clk 0:01:54.7]} 56... f5 {[%clk
0:00:23.8]} 57. Kg2 {[%clk 0:01:55.6]} 57... f4 {[%clk 0:00:24.9]} 58. Rb8
{[%clk 0:01:56.8]} 58... Rc2+ {[%clk 0:00:24.6]} 59. Kf3 {[%clk 0:01:57.6]}
59... Rc3+ {[%clk 0:00:25.7]} 60. Ke4 {[%clk 0:01:58.8]} 60... Re3+ {[%clk
0:00:26.3]} 61. Kf5 {[%clk 0:01:58.6]} 61... f3 {[%clk 0:00:24.5]} 62. Rb1
{[%clk 0:01:52.3]} 62... f2 {[%clk 0:00:19.4]} 63. Rf1 {[%clk 0:01:53.1]} 63...
Kg3 {[%clk 0:00:20.1]} 64. Kxg5 {[%clk 0:01:54.5]} 64... Kg2 {[%clk 0:00:21.2]}
65. Ra1 {[%clk 0:01:56.4]} 65... f1=Q {[%clk 0:00:22.1]} 66. Ra4 {[%clk
0:01:57.6]} 66... Rg3+ {[%clk 0:00:21.6]} 67. Rg4 {[%clk 0:01:59.5]} 67... Qb5+
{[%clk 0:00:21.4]} 68. Kf6 {[%clk 0:01:58.9]} 68... Rxg4 {[%clk 0:00:21.9]} 0-1

[Event "*** Titled Tuesday Blitz"]
[Site "Chess.com"]
[Date "2019.11.05"]
[Round "3"]
[White "MITerryble"]
[Black "temus_galaktionov"]
[Result "1-0"]
[WhiteElo "2877"]
[BlackElo "2687"]
[TimeControl "180+2"]
[EndTime "13:38:42 PST"]
[Termination "MITerryble won by resignation"]

1. d4 {[%clk 0:03:01.9]} 1... c6 {[%clk 0:03:01.9]} 2. Nf3 {[%clk 0:03:01.7]}
2... g6 {[%clk 0:03:03.5]} 3. c4 {[%clk 0:03:02.7]} 3... Bg7 {[%clk 0:03:03]} 4.
Nc3 {[%clk 0:03:03.8]} 4... d6 {[%clk 0:03:02.6]} 5. g3 {[%clk 0:02:59.3]} 5...
Nd7 {[%clk 0:03:03.8]} 6. Bg2 {[%clk 0:03:00.3]} 6... Ngf6 {[%clk 0:03:03.9]} 7.
O-O {[%clk 0:03:00]} 7... O-O {[%clk 0:03:05.5]} 8. e4 {[%clk 0:02:56.8]} 8...
e5 {[%clk 0:03:03.9]} 9. h3 {[%clk 0:02:56.2]} 9... Qe7 {[%clk 0:02:55.8]} 10.
Re1 {[%clk 0:02:54.2]} 10... b6 {[%clk 0:02:50.7]} 11. b3 {[%clk 0:02:46.5]}
11... Bb7 {[%clk 0:02:50.9]} 12. Ba3 {[%clk 0:02:47.3]} 12... c5 {[%clk
0:02:48.3]} 13. dxe5 {[%clk 0:02:39.2]} 13... Nxe5 {[%clk 0:02:45.7]} 14. Nxe5
{[%clk 0:02:39.9]} 14... Qxe5 {[%clk 0:02:46.1]} 15. Bb2 {[%clk 0:02:40.8]}
15... Rad8 {[%clk 0:02:43.3]} 16. Qd2 {[%clk 0:02:36.4]} 16... Qe7 {[%clk
0:02:39.9]} 17. Rad1 {[%clk 0:02:36.2]} 17... Rfe8 {[%clk 0:02:40.3]} 18. Nb5
{[%clk 0:02:24]} 18... Rd7 {[%clk 0:02:06.5]} 19. g4 {[%clk 0:01:05.4]} 19... a6
{[%clk 0:01:56.6]} 20. Nc3 {[%clk 0:01:06.2]} 20... Rdd8 {[%clk 0:01:40.1]} 21.
f4 {[%clk 0:01:00]} 21... Qc7 {[%clk 0:01:32.3]} 22. a4 {[%clk 0:00:56.1]} 22...
Bc6 {[%clk 0:01:31.5]} 23. Bf3 {[%clk 0:00:52.2]} 23... Qb7 {[%clk 0:01:31.3]}
24. Qg2 {[%clk 0:00:53.2]} 24... Re7 {[%clk 0:01:28.7]} 25. Nd5 {[%clk
0:00:40.7]} 25... Nxd5 {[%clk 0:01:21.6]} 26. cxd5 {[%clk 0:00:41.9]} 26... Be8
{[%clk 0:01:02.5]} 27. Bxg7 {[%clk 0:00:42.8]} 27... Kxg7 {[%clk 0:01:02.7]} 28.
e5 {[%clk 0:00:43.2]} 28... Qc7 {[%clk 0:01:01.2]} 29. e6 {[%clk 0:00:37.8]}
29... b5 {[%clk 0:00:53.1]} 30. axb5 {[%clk 0:00:36.9]} 30... axb5 {[%clk
0:00:55]} 31. Qb2+ {[%clk 0:00:35.4]} 31... Kg8 {[%clk 0:00:54]} 32. f5 {[%clk
0:00:36.7]} 32... fxe6 {[%clk 0:00:38.2]} 33. f6 {[%clk 0:00:37.8]} 33... e5
{[%clk 0:00:27]} 34. fxe7 {[%clk 0:00:38.9]} 34... Qxe7 {[%clk 0:00:28.9]} 35.
Be4 {[%clk 0:00:40]} 35... Rc8 {[%clk 0:00:27.6]} 36. Rf1 {[%clk 0:00:40.6]}
36... c4 {[%clk 0:00:27.9]} 37. Rc1 {[%clk 0:00:40.2]} 37... Bd7 {[%clk
0:00:24.2]} 38. bxc4 {[%clk 0:00:40.3]} 38... bxc4 {[%clk 0:00:25.2]} 39. Qf2
{[%clk 0:00:41.1]} 39... Kg7 {[%clk 0:00:24.4]} 40. Rc3 {[%clk 0:00:37.7]} 40...
Bb5 {[%clk 0:00:24.9]} 41. Rf3 {[%clk 0:00:38.2]} 41... Be8 {[%clk 0:00:23.3]}
42. Rf6 {[%clk 0:00:25.5]} 42... c3 {[%clk 0:00:22]} 43. Re6 {[%clk 0:00:26.7]}
43... Qf7 {[%clk 0:00:17.1]} 44. Qxf7+ {[%clk 0:00:25.6]} 44... Bxf7 {[%clk
0:00:19]} 45. Re7 {[%clk 0:00:24.3]} 45... Rf8 {[%clk 0:00:20.5]} 46. Rc7 {[%clk
0:00:25]} 46... Kg8 {[%clk 0:00:16.7]} 47. Rxc3 {[%clk 0:00:25.8]} 1-0